[Event "44th Badalona Open 2018"]
[Site "Badalona"]
[Date "2018.08.02"]
[Round "2"]
[White "Brandt, Stefan"]
[Black "Ruiz"]
[Result "1/2-1/2"]
[ECO "B06"]
[WhiteElo "1940"]
[BlackElo "1773"]
[Annotator "NA"]
[PlyCount "43"]
[EventDate "2018.08.01"]
[EventType "swiss"]
[EventCountry "ESP"]
[SourceTitle "playchess.com"]
[Source "ChessBase"]
[SourceQuality "1"]
[TimeControl "5400+30"]

1. e4 {[%emt 0:02:00]} g6 {[%emt 0:00:00]} 2. Nc3 {[%emt 0:00:18]} d6 {[%emt 0:00:00]} 3. g3 {[%emt 0:00:13]} Bg7 {[%emt 0:00:14]} 4. Bg2 {[%emt 0:00:07]} Nf6 {[%emt 0:00:10]} 5. f4 {[%emt 0:00:18]} e5 {[%emt 0:00:59]} 6. d3 {[%emt 0:00:28]} Nc6 {[%emt 0:04:02]} 7. Nf3 {[%emt 0:00:42]} Bg4 {[%emt 0:02:00]} 8. h3 {[%emt 0:03:01]} Bxf3 {[%emt 0:00:49]} 9. Qxf3 {[%emt 0:01:00]} Nd4 {[%emt 0:00:23]} 10. Qf2 {[%emt 0:03:26]} Nh5 {[%emt 0:02:43]} 11. O-O {[%emt 0:04:14]} Qd7 {[%emt 0:04:54]} 12. Be3 {[%emt 0:04:01]} c5 {[%emt 0:06:44]} 13. Nd5 {[%emt 0:04:53]} exf4 {[%emt 0:07:59]} 14. gxf4 {[%emt 0:04:36]} f5 {[%emt 0:17:16]} 15. c3 {[%emt 0:07:36]} Ne6 {[%emt 0:02:35]} 16. exf5 {[%emt 0:10:53]} gxf5 {[%emt 0:00:16]} 17. Qh4 {[%emt 0:05:15]} Qf7 {[%emt 0:02:00]} 18. Rae1 {[%emt 0:02:13]} Kd7 {[%emt 0:05:16]} 19. b4 {[%emt 0:07:59]} Nf6 {[%emt 0:03:44]} 20. bxc5 {[%emt 0:01:25]} Nxc5 {[%emt 0:02:26]} 21. Bxc5 Nxd5 22. Bf2 1/2-1/2

[Event "44th Badalona Open 2018"]
[Site "Badalona"]
[Date "2018.08.02"]
[Round "2"]
[White "Murat Huertas, Eduard"]
[Black "Kruijf, Caspar"]
[Result "0-1"]
[ECO "C95"]
[WhiteElo "1784"]
[BlackElo "1918"]
[Annotator "NA RC"]
[PlyCount "134"]
[EventDate "2018.08.01"]
[EventType "swiss"]
[EventCountry "ESP"]
[SourceTitle "playchess.com"]
[Source "ChessBase"]
[SourceQuality "1"]
[TimeControl "5400+30"]

1. e4 e5 {[%emt 0:00:00]} 2. Nf3 {[%emt 0:05:17]} Nc6 {[%emt 0:00:00]} 3. Bb5 {[%emt 0:00:00]} a6 4. Ba4 {[%emt 0:00:23]} Nf6 {[%emt 0:00:00]} 5. O-O {[%emt 0:00:24]} Be7 {[%emt 0:00:00]} 6. Re1 {[%emt 0:00:28]} b5 {[%emt 0:00:01]} 7. Bb3 {[%emt 0:00:06]} d6 {[%emt 0:00:00]} 8. c3 {[%emt 0:00:29]} O-O {[%emt 0:00:23]} 9. h3 {[%emt 0:00:11]} Nb8 {[%emt 0:00:30]} 10. d4 {[%emt 0:00:30]} Nbd7 {[%emt 0:00:14]} 11. a4 {[%emt 0:00:59]} Bb7 {[%emt 0:01:28]} 12. Nbd2 {[%emt 0:01:32]} c5 {[%emt 0:03:10]} 13. d5 {[%emt 0:03:39]} c4 {[%emt 0:00:29]} 14. Bc2 {[%emt 0:00:09]} Re8 {[%emt 0:03:27]} 15. Nf1 {[%emt 0:00:28]} Bf8 {[%emt 0:00:15]} 16. Ng3 {[%emt 0:00:34]} g6 {[%emt 0:00:12]} 17. Bg5 {[%emt 0:00:12]} h6 {[%emt 0:01:25] C95: Closed Ruy Lopez: Breyer Variation with 10 d4} 18. Bd2 {[%emt 0:00:12]} Bg7 {[%emt 0:05:59]} 19. Qc1 {[%emt 0:01:23]} Kh7 {[%emt 0:00:30] [#]} 20. Nh2 $146 {[%emt 0:03:19]} ({Predecessor:} 20. b4 cxb3 21. Bxb3 Nc5 22. Qa3 Nfd7 23. Be3 Qc7 24. Nd2 Bf8 25. Bc2 bxa4 26. Bxa4 Nxa4 27. Qxa4 {1-0 (75) Borisek,J (2561)-Amin,B (2662) Doha 2016}) 20... Nc5 {[%emt 0:08:12]} 21. Ra3 {[%emt 0:06:31]} bxa4 {[%emt 0:12:02]} 22. Bxa4 {[%emt 0:01:43]} Nd3 {[%emt 0:06:02]} 23. Qa1 {[%emt 0:03:58]} Nxe1 {[%emt 0:01:54]} 24. Qxe1 {[%emt 0:01:30]} Re7 {[%emt 0:00:30]} 25. Qe2 {[%emt 0:01:46]} Rc8 {[%emt 0:11:38]} 26. Nhf1 {[%emt 0:00:53]} Qb6 {[%emt 0:00:30]} 27. Be3 {[%emt 0:03:38]} Qc7 {[%emt 0:06:44]} 28. Nd2 {[%emt 0:00:30]} Nd7 {[%emt 0:05:29]} 29. Bxd7 {[%emt 0:00:46]} Rxd7 {[%emt 0:05:23]} 30. Ra4 {[%emt 0:08:48]} Qd8 {[%emt 0:00:30]} 31. Nxc4 {[%emt 0:00:30]} Re7 {[%emt 0:08:06]} 32. Na5 {[%emt 0:07:44]} Ra8 $16 {[%emt 0:01:44]} 33. b4 {[%emt 0:00:30]} Qd7 {[%emt 0:03:44]} 34. Qa2 {[%emt 0:03:10]} h5 {[%emt 0:01:25]} 35. c4 {[%emt 0:00:30]} h4 {[%emt 0:00:30]} 36. Ne2 {[%emt 0:00:26]} f5 {[%emt 0:00:36]} 37. f3 {[%emt 0:00:22]} fxe4 {[%emt 0:01:26]} 38. fxe4 {[%emt 0:00:20]} Bh6 {[%emt 0:00:00]} 39. Bf2 {[%emt 0:00:00]} g5 40. c5 {[%emt 0:00:15]} dxc5 {[%emt 0:06:28]} 41. bxc5 {[%emt 0:01:33]} Qb5 {[%emt 0:02:53]} 42. c6 {[%emt 0:02:32]} Bc8 {[%emt 0:00:22]} 43. d6 {[%emt 0:00:30]} Be6 {[%emt 0:00:00]} 44. Qc2 {[%emt 0:02:34]} Rf7 {[%emt 0:02:03]} 45. Nc3 {[%emt 0:02:29]} Qb8 46. c7 {[%emt 0:00:30]} Qf8 {[%emt 0:02:27]} 47. Nd5 {[%emt 0:02:16]} Qxd6 {[%emt 0:01:26]} 48. Nb7 {[%emt 0:02:33]} Qf8 {[%emt 0:01:16]} 49. Nd8 {[%emt 0:00:12]} Rxd8 {[%emt 0:00:08]} 50. cxd8=Q {[%emt 0:00:30]} Qxd8 {[%emt 0:02:12]} 51. Qc6 {[%emt 0:01:30]} Bd7 {[%emt 0:00:22]} 52. Qb7 {[%emt 0:01:04]} Qf8 {[%emt 0:00:23]} 53. Ra2 {[%emt 0:00:30]} Bxh3 {[%emt 0:00:30]} 54. Qxa6 {[%emt 0:00:30]} Bc8 {[%emt 0:00:30]} 55. Qe2 {[%emt 0:03:50]} h3 {[%emt 0:01:10]} 56. Bg3 {[%emt 0:00:30]} hxg2 {[%emt 0:00:30]} 57. Qxg2 {[%emt 0:01:39]} Qc5+ {[%emt 0:00:43]} 58. Kh2 {[%emt 0:01:30]} Be6 {[%emt 0:00:52]} 59. Bxe5 {[%emt 0:00:30]} g4 {[%emt 0:00:13]} 60. Nf6+ {[%emt 0:01:45]} Rxf6 {[%emt 0:00:09]} 61. Bxf6 {[%emt 0:00:10]} Bxa2 {[%emt 0:00:10]} 62. Qxa2 {[%emt 0:00:15]} Qd6+ {[%emt 0:00:52]} 63. e5 {[%emt 0:00:30]} Bf4+ {[%emt 0:00:05]} 64. Kg1 {[%emt 0:02:11]} Qd1+ {[%emt 0:00:50]} 65. Kg2 {[%emt 0:01:36]} Qf3+ {[%emt 0:00:13]} 66. Kg1 {[%emt 0:00:31]} Be3+ {[%emt 0:00:06]} 67. Kh2 Qh3# 0-1

[Event "44th Badalona Open 2018"]
[Site "Badalona"]
[Date "2018.08.04"]
[Round "4"]
[White "Narciso Dublan, Marc"]
[Black "Abhishek, Das"]
[Result "1-0"]
[ECO "B20"]
[WhiteElo "2483"]
[BlackElo "2314"]
[Annotator "ChessBase"]
[PlyCount "111"]
[EventDate "2018.08.01"]
[EventType "swiss"]
[EventCountry "ESP"]
[SourceTitle "playchess.com"]
[Source "ChessBase"]
[SourceQuality "1"]
[TimeControl "5400+30"]

1. e4 c5 {[%emt 0:00:23]} 2. Be2 {[%emt 0:00:00]} Nc6 {[%emt 0:02:44]} 3. d3 {[%emt 0:01:34]} d5 4. f4 {[%emt 0:00:09]} dxe4 {[%emt 0:05:21]} 5. dxe4 Qxd1+ {[%emt 0:00:06]} 6. Bxd1 {[%emt 0:00:36]} b6 {[%emt 0:00:00]} 7. Nf3 {[%emt 0:04:34]} Bb7 {[%emt 0:02:14]} 8. c3 {[%emt 0:07:24]} g6 {[%emt 0:00:15]} 9. O-O Bg7 {[%emt 0:01:15]} 10. Nbd2 {[%emt 0:07:14]} Nf6 11. Bb3 O-O {[%emt 0:02:05]} 12. e5 {[%emt 0:05:47]} Ne8 13. Ne4 Nc7 {[%emt 0:06:59]} 14. Re1 {[%emt 0:18:13]} Rad8 {[%emt 0:13:02]} 15. h4 {[%emt 0:05:44]} Na5 {[%emt 0:10:35]} 16. Bc2 {[%emt 0:01:06]} f5 {[%emt 0:00:15]} 17. exf6 {[%emt 0:02:31]} exf6 {[%emt 0:00:59]} 18. f5 {[%emt 0:03:25]} Rfe8 {[%emt 0:02:12]} 19. fxg6 {[%emt 0:00:32]} hxg6 {[%emt 0:02:47]} 20. Bf4 {[%emt 0:03:19]} Ne6 {[%emt 0:05:24]} 21. Nd6 {[%emt 0:06:19]} Bxf3 {[%emt 0:01:01]} 22. gxf3 {[%emt 0:03:29]} Re7 {[%emt 0:05:50]} 23. Rad1 {[%emt 0:08:10]} Bf8 {[%emt 0:04:18]} 24. Bh2 Nd4 25. cxd4 {[%emt 0:01:40]} Rxe1+ {[%emt 0:00:34]} 26. Rxe1 {[%emt 0:00:07]} Bxd6 {[%emt 0:00:04]} 27. Bxd6 {[%emt 0:00:10]} Rxd6 {[%emt 0:00:03]} 28. dxc5 {[%emt 0:01:24]} Rd2 {[%emt 0:16:16]} 29. cxb6 {[%emt 0:01:43]} axb6 {[%emt 0:03:15]} 30. Re8+ {[%emt 0:00:09]} Kg7 {[%emt 0:00:28]} 31. Rc8 {[%emt 0:07:01]} b5 {[%emt 0:03:36]} 32. Rc3 {[%emt 0:03:04]} Nc4 {[%emt 0:03:40]} 33. a4 Ne5 34. axb5 {[%emt 0:02:05]} Nxf3+ {[%emt 0:00:35]} 35. Rxf3 {[%emt 0:00:18]} Rxc2 {[%emt 0:01:41]} 36. Rb3 {[%emt 0:00:59]} Kf7 {[%emt 0:00:07]} 37. b6 Rc8 38. b7 {[%emt 0:05:35]} Rb8 {[%emt 0:00:34]} 39. Rb6 {[%emt 0:00:04]} g5 {[%emt 0:07:07]} 40. h5 {[%emt 0:03:24]} Kg7 {[%emt 0:01:43]} 41. b4 Kh6 {[%emt 0:00:09]} 42. Rxf6+ {[%emt 0:00:42]} Kxh5 43. Rf7 {[%emt 0:01:56]} Kg6 {[%emt 0:00:39]} 44. Rc7 {[%emt 0:00:17]} Kf5 45. Kf2 Ke5 {[%emt 0:02:13]} 46. b5 {[%emt 0:00:48]} Kf4 {[%emt 0:01:31]} 47. b6 {[%emt 0:01:12]} Ke4 {[%emt 0:00:02]} 48. Kg3 Kf5 49. Rf7+ {[%emt 0:01:11]} Ke6 {[%emt 0:00:47]} 50. Rc7 {[%emt 0:00:21]} Kf5 51. Kf3 Ke5 {[%emt 0:01:51]} 52. Kg4 {[%emt 0:00:50]} Kf6 {[%emt 0:00:33]} 53. Rh7 {[%emt 0:00:22]} Kg6 54. Rd7 {[%emt 0:00:05]} Kf6 {[%emt 0:01:12]} 55. Rc7 Kg6 56. Rc8 {[%emt 0:00:55]} 1-0

[Event "44th Badalona Open 2018"]
[Site "Badalona"]
[Date "2018.08.04"]
[Round "4"]
[White "Aguero Jimenez, Luis Lazaro"]
[Black "Harikrishnan, A Ra"]
[Result "1/2-1/2"]
[ECO "A06"]
[WhiteElo "2482"]
[BlackElo "2301"]
[Annotator "ChessBase"]
[PlyCount "110"]
[EventDate "2018.08.01"]
[EventType "swiss"]
[EventCountry "ESP"]
[SourceTitle "playchess.com"]
[Source "ChessBase"]
[SourceQuality "1"]
[TimeControl "5400+30"]

1. Nf3 {[%emt 0:00:00]} d5 2. g3 {[%emt 0:00:00]} Nf6 {[%emt 0:00:07]} 3. Bg2 c5 4. O-O {[%emt 0:00:00]} Nc6 {[%emt 0:00:22]} 5. d4 {[%emt 0:00:04]} e6 {[%emt 0:00:00]} 6. c4 {[%emt 0:00:30]} dxc4 {[%emt 0:00:25]} 7. Ne5 Bd7 {[%emt 0:00:12]} 8. Na3 {[%emt 0:00:39]} cxd4 {[%emt 0:00:07]} 9. Naxc4 {[%emt 0:00:09]} Be7 {[%emt 0:00:29]} 10. Qb3 {[%emt 0:00:16]} Qc7 11. Nxc6 {[%emt 0:03:46]} Bxc6 {[%emt 0:01:14]} 12. Bf4 {[%emt 0:00:13]} Qd8 {[%emt 0:00:00]} 13. Bxc6+ {[%emt 0:01:06]} bxc6 {[%emt 0:01:40]} 14. Ne5 {[%emt 0:10:49]} c5 {[%emt 0:19:57]} 15. Qb7 {[%emt 0:00:06]} Qc8 16. Qb5+ {[%emt 0:00:06]} Nd7 {[%emt 0:06:01]} 17. b4 {[%emt 0:00:19]} f6 18. Nc4 {[%emt 0:00:04]} e5 {[%emt 0:20:06]} 19. Bd2 {[%emt 0:01:23]} O-O {[%emt 0:19:53]} 20. Na5 {[%emt 0:01:30]} Kh8 {[%emt 0:07:38]} 21. Rac1 {[%emt 0:02:01]} a6 {[%emt 0:07:14]} 22. Qc4 {[%emt 0:01:09]} cxb4 {[%emt 0:01:53]} 23. Qe6 {[%emt 0:07:57]} Qe8 {[%emt 0:03:57]} 24. Nb7 {[%emt 0:01:05]} Bd8 {[%emt 0:02:00]} 25. Qc6 {[%emt 0:03:45]} Be7 {[%emt 0:02:21]} 26. Qd5 {[%emt 0:02:38]} Nb6 {[%emt 0:00:53]} 27. Qe6 {[%emt 0:01:47]} Na4 28. Rc7 {[%emt 0:00:01]} Bd8 {[%emt 0:01:30]} 29. Nxd8 {[%emt 0:03:52]} Qxd8 30. Rd7 {[%emt 0:00:30]} Nc5 {[%emt 0:02:24]} 31. Rxd8 Nxe6 {[%emt 0:00:10]} 32. Rd6 {[%emt 0:00:06]} Nc5 {[%emt 0:02:09]} 33. Bxb4 {[%emt 0:01:01]} Ne4 34. Rd7 {[%emt 0:07:37]} Rfb8 {[%emt 0:00:31]} 35. Be1 {[%emt 0:00:00]} Rb2 {[%emt 0:01:56]} 36. f4 {[%emt 0:00:58]} exf4 37. Rxf4 {[%emt 0:02:05]} Nc5 {[%emt 0:01:53]} 38. Re7 {[%emt 0:01:30]} d3 39. Rc4 {[%emt 0:00:05]} d2 {[%emt 0:01:34]} 40. Bxd2 {[%emt 0:00:30]} Rxd2 {[%emt 0:00:04]} 41. Rxc5 {[%emt 0:00:03]} Rxa2 {[%emt 0:00:21]} 42. Rcc7 {[%emt 0:00:00]} Rg8 43. h4 {[%emt 0:00:11]} Ra5 {[%emt 0:01:16]} 44. Ra7 {[%emt 0:03:31]} h5 {[%emt 0:00:53]} 45. Kf2 {[%emt 0:00:26]} Rf5+ 46. Kg2 {[%emt 0:00:08]} a5 {[%emt 0:00:45]} 47. e4 Rb5 {[%emt 0:00:10]} 48. Kf3 {[%emt 0:00:39]} Kh7 {[%emt 0:00:56]} 49. Red7 {[%emt 0:06:47]} Re5 {[%emt 0:00:09]} 50. Rd5 {[%emt 0:00:29]} Rge8 51. Rdxa5 {[%emt 0:00:01]} Rxa5 {[%emt 0:00:58]} 52. Rxa5 Kg6 {[%emt 0:00:00]} 53. Kf4 {[%emt 0:00:42]} Rb8 {[%emt 0:00:00]} 54. g4 {[%emt 0:00:24]} hxg4 {[%emt 0:00:00]} 55. Kxg4 {[%emt 0:01:09]} Rb1 1/2-1/2

[Event "44th Badalona Open 2018"]
[Site "Badalona"]
[Date "2018.08.04"]
[Round "4"]
[White "Perez Mitjans, Orelvis"]
[Black "Verstraeten, Reinaert"]
[Result "1/2-1/2"]
[ECO "B51"]
[WhiteElo "2402"]
[BlackElo "2303"]
[Annotator "NA"]
[PlyCount "71"]
[EventDate "2018.08.01"]
[EventType "swiss"]
[EventCountry "ESP"]
[SourceTitle "playchess.com"]
[Source "ChessBase"]
[SourceQuality "1"]
[TimeControl "5400+30"]

1. e4 {[%emt 0:16:19]} c5 {[%emt 0:00:00]} 2. Nf3 {[%emt 0:00:03]} d6 {[%emt 0:00:00]} 3. Bb5+ {[%emt 0:00:04]} Nd7 {[%emt 0:00:00]} 4. d4 {[%emt 0:00:00]} Ngf6 {[%emt 0:00:00]} 5. Nc3 {[%emt 0:00:20]} cxd4 {[%emt 0:00:00]} 6. Qxd4 {[%emt 0:00:00]} e5 {[%emt 0:00:04]} 7. Qd3 {[%emt 0:01:17]} h6 8. Be3 {[%emt 0:00:16]} a6 {[%emt 0:00:18]} 9. Bc4 {[%emt 0:00:30]} b5 {[%emt 0:00:04]} 10. Bd5 {[%emt 0:08:41]} Rb8 11. Ba7 {[%emt 0:00:08]} Nxd5 {[%emt 0:00:27]} 12. Nxd5 {[%emt 0:00:14]} Rb7 {[%emt 0:00:06]} 13. Be3 {[%emt 0:00:30]} Nf6 {[%emt 0:00:27]} 14. Nxf6+ {[%emt 0:04:34]} Qxf6 {[%emt 0:00:30]} 15. a4 {[%emt 0:08:09]} Be7 {[%emt 0:06:29]} 16. O-O {[%emt 0:00:30]} O-O {[%emt 0:00:30]} 17. axb5 {[%emt 0:00:12]} axb5 {[%emt 0:23:06]} 18. Bd2 {[%emt 0:12:59]} Qg6 {[%emt 0:08:01]} 19. Bb4 {[%emt 0:04:26]} Bh3 20. Nh4 Bxh4 {[%emt 0:00:44]} 21. Qxh3 {[%emt 0:00:32]} Qxe4 {[%emt 0:02:23]} 22. Bxd6 {[%emt 0:00:46]} Be7 {[%emt 0:00:39]} 23. Rae1 {[%emt 0:00:03]} Qxc2 {[%emt 0:00:30]} 24. Bxe5 {[%emt 0:10:33]} Bc5 {[%emt 0:13:15]} 25. Qf3 {[%emt 0:00:03]} Re7 26. Rc1 {[%emt 0:00:02]} Bxf2+ {[%emt 0:01:23]} 27. Kh1 {[%emt 0:01:31]} Qg6 {[%emt 0:03:08]} 28. Bxg7 {[%emt 0:01:31]} Qxg7 {[%emt 0:01:31]} 29. Qxf2 {[%emt 0:02:40]} Rfe8 {[%emt 0:02:07]} 30. b4 {[%emt 0:00:30]} Re2 {[%emt 0:00:30]} 31. Qf3 {[%emt 0:00:33]} R8e3 {[%emt 0:07:31]} 32. Qd5 {[%emt 0:02:29]} Re5 {[%emt 0:00:06]} 33. Qf3 {[%emt 0:19:02]} R5e3 {[%emt 0:01:12]} 34. Qb7 {[%emt 0:00:30]} Re7 {[%emt 0:05:47]} 35. Qa8+ {[%emt 0:03:22]} Re8 36. Qf3 {[%emt 0:00:30]} 1/2-1/2

[Event "44th Badalona Open 2018"]
[Site "Badalona"]
[Date "2018.08.04"]
[Round "4"]
[White "Terao, Juliana Sayumi"]
[Black "Oliva Castaneda, Kevel"]
[Result "0-1"]
[ECO "B22"]
[WhiteElo "2295"]
[BlackElo "2478"]
[Annotator "RC"]
[PlyCount "108"]
[EventDate "2018.08.01"]
[EventType "swiss"]
[EventCountry "ESP"]
[SourceTitle "playchess.com"]
[Source "ChessBase"]
[SourceQuality "1"]
[TimeControl "5400+30"]

1. e4 c5 {[%emt 0:00:00]} 2. c3 {[%emt 0:00:00]} Nf6 {[%emt 0:00:00]} 3. e5 {[%emt 0:00:00]} Nd5 {[%emt 0:00:00]} 4. d4 {[%emt 0:00:07]} cxd4 {[%emt 0:00:00]} 5. Nf3 e6 {[%emt 0:00:00]} 6. cxd4 {[%emt 0:01:37]} d6 7. Bc4 {[%emt 0:01:19]} Nc6 {[%emt 0:00:40]} 8. O-O {[%emt 0:00:30]} Be7 {[%emt 0:00:08]} 9. Qe2 {[%emt 0:00:27]} O-O {[%emt 0:00:16]} 10. Re1 {[%emt 0:03:07]} Bd7 {[%emt 0:00:30]} 11. Bxd5 {[%emt 0:02:51]} exd5 {[%emt 0:00:00]} 12. Nc3 {[%emt 0:04:41]} Be6 {[%emt 0:04:46]} 13. Bf4 {[%emt 0:01:38]} a6 {[%emt 0:00:22]} 14. Rac1 {[%emt 0:08:51]} Re8 {[%emt 0:02:11]} 15. a3 {[%emt 0:02:09]} Rc8 {[%emt 0:05:00]} 16. b4 {[%emt 0:06:39]} Na7 {[%emt 0:00:30]} 17. Qd3 f6 {[%emt 0:03:44]} 18. exd6 {[%emt 0:05:28]} Bxd6 {[%emt 0:00:06]} 19. Bxd6 {[%emt 0:02:31]} Qxd6 {[%emt 0:05:48]} 20. Nd2 {[%emt 0:10:57]} Re7 {[%emt 0:02:17]} 21. Nb3 Rec7 {[%emt 0:04:23]} 22. h3 {[%emt 0:13:40]} Bf7 {[%emt 0:05:54]} 23. h4 {[%emt 0:11:12]} Rd8 {[%emt 0:00:00]} 24. Re3 {[%emt 0:00:30]} Rdc8 {[%emt 0:06:48]} 25. Ree1 {[%emt 0:04:06]} Qf4 {[%emt 0:02:37]} 26. Ne2 {[%emt 0:03:09]} Qd6 {[%emt 0:07:24]} 27. Rxc7 {[%emt 0:00:30]} Rxc7 {[%emt 0:03:34]} 28. Nc5 {[%emt 0:03:09]} Re7 {[%emt 0:01:03]} 29. Qd2 {[%emt 0:00:30]} Nb5 {[%emt 0:07:57]} 30. a4 {[%emt 0:00:30]} Na3 31. Ng3 {[%emt 0:03:43]} Nc4 {[%emt 0:00:34]} 32. Qc3 {[%emt 0:02:27]} g6 {[%emt 0:11:17]} 33. Nf1 {[%emt 0:00:30]} Kg7 {[%emt 0:00:53]} 34. Nd3 {[%emt 0:06:47]} b6 35. Qc1 {[%emt 0:00:30]} Re4 {[%emt 0:02:00]} 36. Qc3 {[%emt 0:00:36]} Qc6 {[%emt 0:08:21]} 37. Rxe4 {[%emt 0:00:57]} dxe4 {[%emt 0:00:05]} 38. Nb2 {[%emt 0:00:05]} Na5 {[%emt 0:00:25]} 39. Qe1 {[%emt 0:00:49]} Nb3 40. Ng3 {[%emt 0:00:44]} Qc2 {[%emt 0:03:52]} 41. Nd1 {[%emt 0:01:40]} Nxd4 {[%emt 0:00:42]} 42. Ne3 {[%emt 0:00:30]} Qxa4 {[%emt 0:01:42]} 43. Nxe4 Qc6 {[%emt 0:00:39]} 44. Ng3 {[%emt 0:01:02]} Nb3 {[%emt 0:03:49]} 45. Kh2 {[%emt 0:00:20]} Qd6 46. Qc3 {[%emt 0:01:02]} a5 {[%emt 0:01:48]} 47. bxa5 {[%emt 0:00:49]} bxa5 {[%emt 0:00:27]} 48. Kg1 {[%emt 0:00:30]} Qe5 {[%emt 0:01:27]} 49. Qc6 {[%emt 0:00:24]} h5 {[%emt 0:01:02]} 50. Ne4 {[%emt 0:00:12]} Nd4 {[%emt 0:00:28]} 51. Qb7 Ne2+ {[%emt 0:00:36]} 52. Kf1 {[%emt 0:01:15]} Nf4 53. Qb1 {[%emt 0:00:49]} a4 {[%emt 0:00:45]} 54. Nd2 {[%emt 0:00:15]} a3 {[%emt 0:00:23]} 0-1

[Event "44th Badalona Open 2018"]
[Site "Badalona"]
[Date "2018.08.04"]
[Round "4"]
[White "Saurabh, Anand"]
[Black "Pulvett Marin, Daniel Eduardo"]
[Result "0-1"]
[ECO "B42"]
[WhiteElo "2256"]
[BlackElo "2464"]
[Annotator "ChessBase"]
[PlyCount "133"]
[EventDate "2018.08.01"]
[EventType "swiss"]
[EventCountry "ESP"]
[SourceTitle "playchess.com"]
[Source "ChessBase"]
[SourceQuality "1"]
[TimeControl "5400+30"]

1. e4 c5 {[%emt 0:17:00]} 2. Nf3 {[%emt 0:00:00]} e6 {[%emt 0:00:04]} 3. d4 {[%emt 0:00:08]} cxd4 {[%emt 0:00:04]} 4. Nxd4 a6 {[%emt 0:01:46]} 5. Bd3 {[%emt 0:00:32]} Ne7 {[%emt 0:00:02]} 6. O-O {[%emt 0:01:21]} Nec6 7. Nxc6 {[%emt 0:07:11]} Nxc6 {[%emt 0:00:05]} 8. c4 {[%emt 0:01:13]} Bc5 {[%emt 0:01:17]} 9. Qe2 d6 {[%emt 0:01:57]} 10. Be3 {[%emt 0:00:52]} e5 {[%emt 0:00:56]} 11. Nc3 Be6 {[%emt 0:02:23]} 12. Nd5 {[%emt 0:02:59]} O-O {[%emt 0:04:01]} 13. Kh1 {[%emt 0:01:02]} a5 14. Bxc5 {[%emt 0:10:19]} dxc5 {[%emt 0:00:43]} 15. Qe3 {[%emt 0:00:41]} Qd6 {[%emt 0:24:58]} 16. f4 exf4 17. Rxf4 {[%emt 0:01:43]} Qe5 {[%emt 0:00:37]} 18. Qf2 Qd4 {[%emt 0:11:26]} 19. Qxd4 {[%emt 0:10:51]} Nxd4 {[%emt 0:01:13]} 20. Kg1 Nc6 21. a4 {[%emt 0:06:46]} Ne5 {[%emt 0:00:45]} 22. Bf1 {[%emt 0:00:35]} Rad8 {[%emt 0:06:38]} 23. Ra3 Ng6 {[%emt 0:00:11]} 24. Rf2 {[%emt 0:01:18]} Bd7 {[%emt 0:02:06]} 25. Rb3 {[%emt 0:05:34]} Bc6 26. h4 Rfe8 {[%emt 0:04:17]} 27. h5 {[%emt 0:00:55]} Ne5 {[%emt 0:00:03]} 28. Rg3 {[%emt 0:07:03]} Kh8 {[%emt 0:01:12]} 29. h6 {[%emt 0:06:00]} g6 30. Rg5 {[%emt 0:00:32]} Bxd5 {[%emt 0:10:24]} 31. cxd5 {[%emt 0:01:17]} c4 {[%emt 0:00:15]} 32. Rf6 {[%emt 0:01:01]} Kg8 {[%emt 0:00:54]} 33. Rb6 {[%emt 0:01:28]} Nd7 34. Rxb7 Nc5 {[%emt 0:02:25]} 35. Rb5 {[%emt 0:00:59]} Nxe4 {[%emt 0:00:06]} 36. Rg4 {[%emt 0:00:00]} f5 {[%emt 0:06:46]} 37. Rf4 {[%emt 0:03:26]} Nd6 {[%emt 0:01:08]} 38. Rxa5 Ra8 {[%emt 0:00:02]} 39. Rxa8 {[%emt 0:02:28]} Rxa8 40. Bxc4 {[%emt 0:00:17]} Rxa4 {[%emt 0:00:31]} 41. b3 Rb4 {[%emt 0:02:33]} 42. Kf1 {[%emt 0:05:41]} Kf7 43. Ke2 {[%emt 0:00:56]} Kf6 {[%emt 0:01:17]} 44. Kd3 Ke5 {[%emt 0:00:12]} 45. Rf1 {[%emt 0:01:33]} Rb7 46. Re1+ {[%emt 0:01:06]} Ne4 {[%emt 0:00:33]} 47. g4 Ra7 {[%emt 0:00:22]} 48. Re2 {[%emt 0:02:03]} Ra1 {[%emt 0:00:03]} 49. gxf5 {[%emt 0:07:06]} gxf5 {[%emt 0:00:25]} 50. Rg2 Rh1 51. Rg7 {[%emt 0:01:33]} Rh3+ {[%emt 0:00:41]} 52. Ke2 {[%emt 0:00:19]} Rxh6 {[%emt 0:00:10]} 53. Kf3 {[%emt 0:00:11]} Rh2 54. Ba6 Rf2+ {[%emt 0:03:25]} 55. Ke3 {[%emt 0:03:03]} f4+ {[%emt 0:00:03]} 56. Kd3 {[%emt 0:00:02]} Nc5+ {[%emt 0:00:28]} 57. Kc4 Nxa6 {[%emt 0:00:28]} 58. Re7+ {[%emt 0:00:18]} Kf5 {[%emt 0:00:36]} 59. Rxh7 {[%emt 0:00:40]} Rc2+ 60. Kd4 Rd2+ {[%emt 0:00:43]} 61. Kc4 {[%emt 0:01:00]} Rc2+ {[%emt 0:00:03]} 62. Kd4 {[%emt 0:00:07]} Rd2+ {[%emt 0:00:17]} 63. Kc4 {[%emt 0:00:20]} f3 {[%emt 0:00:00]} 64. Rf7+ {[%emt 0:01:08]} Ke4 65. b4 Rd4+ {[%emt 0:01:37]} 66. Kc3 {[%emt 0:04:06]} Rxd5 {[%emt 0:00:22]} 67. Kc4 {[%emt 0:00:06]} 0-1

[Event "44th Badalona Open 2018"]
[Site "Badalona"]
[Date "2018.08.04"]
[Round "4"]
[White "Deshpande, Aniruddha"]
[Black "Fluvia Poyatos, Jordi"]
[Result "0-1"]
[ECO "A41"]
[WhiteElo "2179"]
[BlackElo "2441"]
[Annotator "NA"]
[PlyCount "70"]
[EventDate "2018.08.01"]
[EventType "swiss"]
[EventCountry "ESP"]
[SourceTitle "playchess.com"]
[Source "ChessBase"]
[SourceQuality "1"]
[TimeControl "5400+30"]

1. d4 d6 {[%emt 0:00:36]} 2. Nf3 {[%emt 0:02:00]} Bg4 3. h3 Bxf3 {[%emt 0:01:20]} 4. exf3 {[%emt 0:01:16]} g6 5. c3 {[%emt 0:05:35]} Nd7 {[%emt 0:02:10]} 6. Qb3 {[%emt 0:02:32]} Rb8 {[%emt 0:02:15]} 7. Bc4 {[%emt 0:02:28]} e6 {[%emt 0:01:04]} 8. d5 {[%emt 0:01:26]} e5 {[%emt 0:07:24]} 9. Be3 {[%emt 0:00:58]} a6 {[%emt 0:03:17]} 10. Ba7 {[%emt 0:09:35]} b5 {[%emt 0:01:13]} 11. Be2 Rb7 {[%emt 0:09:04]} 12. Be3 {[%emt 0:04:26]} Ne7 {[%emt 0:00:09]} 13. Nd2 {[%emt 0:16:53]} Nf5 {[%emt 0:00:37]} 14. O-O {[%emt 0:00:45]} Nxe3 {[%emt 0:08:54]} 15. fxe3 {[%emt 0:00:03]} Bh6 {[%emt 0:00:14]} 16. f4 {[%emt 0:03:20]} Qh4 {[%emt 0:02:42]} 17. Qc2 {[%emt 0:11:54]} O-O {[%emt 0:01:51]} 18. a4 {[%emt 0:08:49]} exf4 {[%emt 0:02:36]} 19. axb5 axb5 {[%emt 0:00:42]} 20. e4 {[%emt 0:10:08]} Ne5 {[%emt 0:05:55]} 21. Nf3 {[%emt 0:01:08]} Nxf3+ {[%emt 0:00:10]} 22. Bxf3 {[%emt 0:00:26]} Bg7 {[%emt 0:02:20]} 23. Ra5 {[%emt 0:05:57]} b4 {[%emt 0:00:14]} 24. cxb4 {[%emt 0:04:59]} Rxb4 {[%emt 0:00:30]} 25. Qxc7 {[%emt 0:03:42]} Bd4+ {[%emt 0:01:52]} 26. Kh1 {[%emt 0:02:43]} Bb6 {[%emt 0:00:10]} 27. Qxd6 {[%emt 0:00:40]} Bxa5 {[%emt 0:00:11]} 28. Qc5 {[%emt 0:00:03]} Ra8 {[%emt 0:02:50]} 29. e5 {[%emt 0:00:36]} Qd8 {[%emt 0:01:17]} 30. e6 {[%emt 0:00:45]} Rc8 {[%emt 0:01:43]} 31. Qa7 {[%emt 0:00:10]} Qc7 {[%emt 0:02:29]} 32. Qa6 Qc4 {[%emt 0:08:03]} 33. Qxc4 {[%emt 0:02:26]} Rbxc4 {[%emt 0:00:24]} 34. e7 {[%emt 0:00:44]} Bb4 {[%emt 0:00:50]} 35. Bg4 {[%emt 0:00:16]} Re8 {[%emt 0:00:51]} 0-1